[Event "Moscow-ch Women 2021"]
[Site "Moscow"]
[Date "2021.03.27"]
[Round "3.8"]
[White "Ivanova, Anastasia S."]
[Black "Kunikova, Polina S"]
[Result "1-0"]
[ECO "D27"]
[WhiteElo "1830"]
[BlackElo "1028"]
[Annotator "NA"]
[PlyCount "75"]
[EventDate "2021.03.25"]
[EventType "swiss"]
[EventCountry "RUS"]
[SourceTitle "playchess.com"]
[Source "ChessBase"]
[SourceQuality "1"]
[TimeControl "5400+30"]

1. d4 {[%emt 0:00:00]} d5 {[%emt 0:00:00]} 2. c4 {[%emt 0:00:00]} dxc4 {[%emt 0:00:00]} 3. Nf3 {[%emt 0:00:00]} Nf6 {[%emt 0:01:01]} 4. e3 {[%emt 0:00:00]} e6 {[%emt 0:01:17]} 5. Bxc4 {[%emt 0:00:00]} c5 {[%emt 0:01:37]} 6. O-O {[%emt 0:00:07]} a6 {[%emt 0:00:41]} 7. a4 {[%emt 0:00:05]} Nc6 {[%emt 0:02:18]} 8. Qe2 {[%emt 0:00:09]} Bd6 {[%emt 0:02:54]} 9. Rd1 {[%emt 0:00:24]} Qe7 {[%emt 0:01:38]} 10. Nc3 {[%emt 0:00:48]} O-O {[%emt 0:02:32]} 11. b3 {[%emt 0:02:28]} b6 {[%emt 0:01:23]} 12. d5 {[%emt 0:07:43]} Nb4 {[%emt 0:02:10]} 13. dxe6 {[%emt 0:01:37]} Bxe6 {[%emt 0:00:38]} 14. Ba3 {[%emt 0:04:19]} Bxc4 {[%emt 0:02:42]} 15. Qxc4 {[%emt 0:01:24]} Rac8 {[%emt 0:07:49]} 16. Rd2 {[%emt 0:02:24]} Be5 {[%emt 0:02:02]} 17. Nxe5 {[%emt 0:02:02]} Qxe5 {[%emt 0:00:15]} 18. Rad1 {[%emt 0:00:46]} Nc6 {[%emt 0:07:47]} 19. Bb2 {[%emt 0:05:05]} Ra8 {[%emt 0:02:32]} 20. Nd5 {[%emt 0:00:23]} Qg5 {[%emt 0:02:30]} 21. Nxb6 {[%emt 0:00:54]} Na5 {[%emt 0:03:00]} 22. Bxf6 {[%emt 0:03:49]} Nxc4 {[%emt 0:04:55]} 23. Bxg5 {[%emt 0:00:12]} Nxd2 {[%emt 0:01:31]} 24. Nxa8 {[%emt 0:01:16]} Ne4 {[%emt 0:00:54]} 25. Bd8 {[%emt 0:00:11]} Nc3 {[%emt 0:00:52]} 26. Rd2 {[%emt 0:02:49]} Nb1 {[%emt 0:01:49]} 27. Rd3 {[%emt 0:00:40]} Na3 {[%emt 0:00:34]} 28. Nc7 {[%emt 0:00:26]} c4 {[%emt 0:00:38]} 29. bxc4 {[%emt 0:00:13]} Nxc4 {[%emt 0:00:25]} 30. Be7 {[%emt 0:00:04]} Rc8 {[%emt 0:00:31]} 31. Rd8+ {[%emt 0:00:13]} Rxd8 {[%emt 0:00:24]} 32. Bxd8 {[%emt 0:00:04]} Nb2 {[%emt 0:00:12]} 33. a5 {[%emt 0:00:07]} Nc4 {[%emt 0:00:10]} 34. Nxa6 {[%emt 0:00:05]} Kf8 {[%emt 0:00:25]} 35. Nc5 {[%emt 0:00:47]} Ke8 {[%emt 0:00:16]} 36. Bc7 {[%emt 0:00:07]} Na3 {[%emt 0:00:48]} 37. a6 {[%emt 0:00:11]} Nb5 {[%emt 0:00:19]} 38. Bb6 {[%emt 0:00:05]} 1-0

[Event "Moscow-ch Women 2021"]
[Site "Moscow"]
[Date "2021.03.27"]
[Round "3.9"]
[White "Shevtsova, Stefania"]
[Black "Lyutsinger, Iren"]
[Result "0-1"]
[ECO "B22"]
[WhiteElo "1654"]
[BlackElo "1464"]
[Annotator "NA"]
[PlyCount "132"]
[EventDate "2021.03.25"]
[EventType "swiss"]
[EventCountry "RUS"]
[SourceTitle "playchess.com"]
[Source "ChessBase"]
[SourceQuality "1"]
[TimeControl "5400+30"]

1. e4 {[%emt 0:00:00]} c5 {[%emt 0:00:00]} 2. c3 {[%emt 0:00:00]} d5 {[%emt 0:00:00]} 3. exd5 {[%emt 0:00:00]} Qxd5 {[%emt 0:00:00]} 4. d4 {[%emt 0:00:03]} Nc6 {[%emt 0:00:03]} 5. Nf3 {[%emt 0:00:32]} Bf5 {[%emt 0:00:00]} 6. Be2 {[%emt 0:04:03]} cxd4 {[%emt 0:00:12]} 7. cxd4 {[%emt 0:00:11]} Bxb1 {[%emt 0:00:02]} 8. Rxb1 {[%emt 0:00:08]} e6 {[%emt 0:00:25]} 9. O-O {[%emt 0:03:36]} Nf6 {[%emt 0:01:37]} 10. b3 {[%emt 0:10:42]} Be7 {[%emt 0:07:52]} 11. Bb2 {[%emt 0:09:20]} O-O {[%emt 0:04:30]} 12. Ne5 {[%emt 0:26:00]} Nxe5 {[%emt 0:10:01]} 13. dxe5 {[%emt 0:00:28]} Qxd1 {[%emt 0:00:11]} 14. Rfxd1 {[%emt 0:07:21]} Nd5 {[%emt 0:01:07]} 15. Bf3 {[%emt 0:01:00]} Rfd8 {[%emt 0:02:01]} 16. Rbc1 {[%emt 0:00:15]} Rac8 {[%emt 0:11:34]} 17. Kf1 {[%emt 0:06:45]} Bc5 {[%emt 0:03:54]} 18. Bxd5 {[%emt 0:05:49]} exd5 {[%emt 0:03:16]} 19. Rd3 {[%emt 0:00:31]} Rc7 {[%emt 0:06:11]} 20. b4 {[%emt 0:05:46]} Bb6 {[%emt 0:01:49]} 21. Rxc7 {[%emt 0:00:30]} Bxc7 {[%emt 0:00:01]} 22. Bd4 {[%emt 0:00:16]} a6 {[%emt 0:14:27]} 23. Rc3 {[%emt 0:04:50]} Rd7 {[%emt 0:00:09]} 24. Ke2 {[%emt 0:00:11]} Kf8 {[%emt 0:00:29]} 25. Bc5+ {[%emt 0:05:20]} Ke8 {[%emt 0:01:43]} 26. f4 {[%emt 0:00:09]} Rd8 {[%emt 0:06:19]} 27. Kd3 {[%emt 0:02:40]} Kd7 {[%emt 0:01:00]} 28. a4 {[%emt 0:00:22]} f6 {[%emt 0:01:43]} 29. Bd4 {[%emt 0:01:23]} fxe5 {[%emt 0:00:50]} 30. Bxe5 {[%emt 0:00:17]} Bxe5 {[%emt 0:02:21]} 31. fxe5 {[%emt 0:00:06]} Ke6 {[%emt 0:00:00]} 32. Kd4 {[%emt 0:00:23]} Rd7 {[%emt 0:01:05]} 33. Rc5 {[%emt 0:01:48]} Rf7 {[%emt 0:01:50]} 34. g3 {[%emt 0:01:44]} Rd7 {[%emt 0:00:59]} 35. b5 {[%emt 0:00:16]} axb5 {[%emt 0:00:32]} 36. axb5 {[%emt 0:00:05]} h6 {[%emt 0:02:04]} 37. b6 {[%emt 0:00:54]} g6 {[%emt 0:01:08]} 38. Rc8 {[%emt 0:03:21]} h5 {[%emt 0:01:51]} 39. Re8+ {[%emt 0:00:14]} Kf7 {[%emt 0:00:31]} 40. Rc8 {[%emt 0:01:10]} Ke6 {[%emt 0:00:08]} 41. Rf8 {[%emt 0:01:07]} h4 {[%emt 0:03:33]} 42. Rf6+ {[%emt 0:00:10]} Ke7 {[%emt 0:00:01]} 43. Rxg6 {[%emt 0:00:10]} hxg3 {[%emt 0:14:01]} 44. Rg7+ {[%emt 0:00:11]} Kf8 {[%emt 0:00:26]} 45. Rxd7 {[%emt 0:00:07]} g2 {[%emt 0:00:18]} 46. Rd8+ {[%emt 0:01:04]} Kg7 {[%emt 0:00:17]} 47. Rd7+ {[%emt 0:00:19]} Kg6 {[%emt 0:00:44]} 48. Rd6+ {[%emt 0:00:11]} Kh5 {[%emt 0:00:20]} 49. Kxd5 {[%emt 0:00:58]} g1=Q {[%emt 0:05:45]} 50. Ke6 {[%emt 0:01:34]} Qg8+ {[%emt 0:00:00]} 51. Kd7 {[%emt 0:00:12]} Qg7+ {[%emt 0:00:00]} 52. Ke6 {[%emt 0:00:11]} Kg6 {[%emt 0:00:00]} 53. Kd5+ {[%emt 0:01:47]} Kf5 {[%emt 0:00:00]} 54. Rf6+ {[%emt 0:00:20]} Kg5 {[%emt 0:00:00]} 55. Kd6 {[%emt 0:01:01]} Qh8 {[%emt 0:00:15]} 56. Kd7 {[%emt 0:00:42]} Qxh2 {[%emt 0:00:21]} 57. Re6 {[%emt 0:00:31]} Kf5 {[%emt 0:00:12]} 58. Ke7 {[%emt 0:00:38]} Qd2 {[%emt 0:00:57]} 59. Rd6 {[%emt 0:00:16]} Qg5+ {[%emt 0:00:27]} 60. Rf6+ {[%emt 0:00:03]} Kxe5 {[%emt 0:00:14]} 61. Kd7 {[%emt 0:00:09]} Qxf6 {[%emt 0:00:09]} 62. Kc7 {[%emt 0:00:09]} Kd5 {[%emt 0:00:08]} 63. Kb8 {[%emt 0:00:12]} Kc6 {[%emt 0:00:10]} 64. Ka7 {[%emt 0:00:13]} Qa1+ {[%emt 0:00:29]} 65. Kb8 {[%emt 0:00:08]} Qa2 {[%emt 0:00:13]} 66. Kc8 {[%emt 0:00:06]} Qa8# {[%emt 0:04:55]} 0-1

[Event "Moscow-ch Women 2021"]
[Site "Moscow"]
[Date "2021.03.27"]
[Round "3.10"]
[White "Panina, Sofya"]
[Black "Dimitrova, Aleksandra"]
[Result "0-1"]
[ECO "E30"]
[WhiteElo "1341"]
[BlackElo "2275"]
[Annotator "NA"]
[PlyCount "90"]
[EventDate "2021.03.25"]
[EventType "swiss"]
[EventCountry "RUS"]
[SourceTitle "playchess.com"]
[Source "ChessBase"]
[SourceQuality "1"]
[TimeControl "5400+30"]

1. d4 {[%emt 0:10:34]} Nf6 {[%emt 0:00:00]} 2. c4 {[%emt 0:00:06]} e6 {[%emt 0:00:00]} 3. Nc3 {[%emt 0:00:02]} Bb4 {[%emt 0:00:00]} 4. Bg5 {[%emt 0:00:08]} c5 {[%emt 0:00:00]} 5. Bxf6 {[%emt 0:01:05]} Bxc3+ {[%emt 0:00:02]} 6. bxc3 {[%emt 0:00:01]} Qxf6 {[%emt 0:00:08]} 7. Nf3 {[%emt 0:00:12]} Nc6 {[%emt 0:02:40]} 8. e4 {[%emt 0:00:52]} d6 {[%emt 0:02:08]} 9. Be2 {[%emt 0:06:19]} O-O {[%emt 0:04:18]} 10. O-O {[%emt 0:00:41]} e5 {[%emt 0:08:22]} 11. d5 {[%emt 0:03:54]} Ne7 {[%emt 0:00:13]} 12. g3 {[%emt 0:11:43]} g6 {[%emt 0:09:20]} 13. Qd2 {[%emt 0:08:17]} Qg7 {[%emt 0:01:09]} 14. Kh1 {[%emt 0:11:28]} f5 {[%emt 0:08:59]} 15. Ng1 {[%emt 0:09:33]} fxe4 {[%emt 0:02:30]} 16. Qe3 {[%emt 0:00:41]} Bf5 {[%emt 0:02:13]} 17. g4 {[%emt 0:00:29]} Bd7 {[%emt 0:02:01]} 18. Nh3 {[%emt 0:03:06]} h6 {[%emt 0:06:51]} 19. Qxe4 {[%emt 0:02:01]} g5 {[%emt 0:07:54]} 20. Bd3 {[%emt 0:04:09]} Rf6 {[%emt 0:04:29]} 21. f3 {[%emt 0:01:37]} Ng6 {[%emt 0:02:27]} 22. Qe2 {[%emt 0:03:26]} Nh4 {[%emt 0:01:54]} 23. Be4 {[%emt 0:01:14]} Raf8 {[%emt 0:01:00]} 24. Rf2 {[%emt 0:00:33]} Be8 {[%emt 0:03:06]} 25. Raf1 {[%emt 0:00:46]} Bg6 {[%emt 0:02:08]} 26. Kg1 {[%emt 0:00:54]} R8f7 {[%emt 0:03:29]} 27. Qe3 {[%emt 0:06:31]} Kh7 {[%emt 0:03:59]} 28. Qe2 {[%emt 0:01:13]} Qf8 {[%emt 0:01:19]} 29. Kh1 {[%emt 0:06:32]} Bxe4 {[%emt 0:05:15]} 30. Qxe4+ {[%emt 0:01:48]} Kg7 {[%emt 0:00:40]} 31. Ng1 {[%emt 0:02:24]} Rf4 {[%emt 0:00:11]} 32. Qe2 {[%emt 0:01:43]} e4 {[%emt 0:01:12]} 33. h3 {[%emt 0:00:13]} exf3 {[%emt 0:02:33]} 34. Qd3 {[%emt 0:00:59]} b6 {[%emt 0:00:59]} 35. Kh2 {[%emt 0:00:37]} h5 {[%emt 0:07:11]} 36. gxh5 {[%emt 0:01:24]} Qh8 {[%emt 0:01:42]} 37. Kg3 {[%emt 0:00:41]} Qxh5 {[%emt 0:01:01]} 38. Nxf3 {[%emt 0:00:28]} Nf5+ {[%emt 0:01:12]} 39. Kh2 {[%emt 0:00:32]} g4 {[%emt 0:00:58]} 40. Ng1 {[%emt 0:00:33]} Rxf2+ {[%emt 0:00:30]} 41. Rxf2 {[%emt 0:00:05]} g3+ {[%emt 0:00:04]} 42. Kg2 {[%emt 0:00:54]} gxf2 {[%emt 0:00:09]} 43. Kxf2 {[%emt 0:00:23]} Qh4+ {[%emt 0:00:26]} 44. Kg2 {[%emt 0:00:35]} Qg5+ {[%emt 0:00:27]} 45. Kh2 {[%emt 0:00:31]} Nh4 {[%emt 0:00:11]} 0-1

[Event "Moscow-ch Women 2021"]
[Site "Moscow"]
[Date "2021.03.28"]
[Round "4.1"]
[White "Zvereva, Margarita"]
[Black "Charochkina, Daria"]
[Result "1/2-1/2"]
[ECO "A46"]
[WhiteElo "1937"]
[BlackElo "2337"]
[Annotator "NA"]
[PlyCount "135"]
[EventDate "2021.03.25"]
[EventType "swiss"]
[EventCountry "RUS"]
[SourceTitle "playchess.com"]
[Source "ChessBase"]
[SourceQuality "1"]
[TimeControl "5400+30"]

1. d4 {[%emt 0:00:00]} Nf6 {[%emt 0:01:29]} 2. Nf3 {[%emt 0:00:00]} e6 {[%emt 0:00:04]} 3. e3 {[%emt 0:00:39]} g6 {[%emt 0:00:15]} 4. Bd3 {[%emt 0:00:54]} Bg7 {[%emt 0:00:07]} 5. O-O {[%emt 0:00:25]} O-O {[%emt 0:00:17]} 6. c4 {[%emt 0:01:12]} c5 {[%emt 0:00:46]} 7. Nc3 {[%emt 0:02:15]} cxd4 {[%emt 0:03:52]} 8. Nxd4 {[%emt 0:00:47]} Nc6 {[%emt 0:14:16]} 9. Ndb5 {[%emt 0:15:32]} Ne8 {[%emt 0:16:45]} 10. Be2 {[%emt 0:07:25]} Qe7 {[%emt 0:13:13]} 11. Ne4 {[%emt 0:10:09]} f5 {[%emt 0:03:05]} 12. Ned6 {[%emt 0:01:46]} Nxd6 {[%emt 0:02:11]} 13. Nxd6 {[%emt 0:00:32]} Nd4 {[%emt 0:05:09]} 14. Nxc8 {[%emt 0:04:44]} Nxe2+ {[%emt 0:00:14]} 15. Qxe2 {[%emt 0:00:04]} Raxc8 {[%emt 0:00:07]} 16. Rb1 {[%emt 0:06:17]} d5 {[%emt 0:02:14]} 17. b3 {[%emt 0:02:35]} dxc4 {[%emt 0:01:05]} 18. bxc4 {[%emt 0:00:06]} b6 {[%emt 0:02:07]} 19. Bb2 {[%emt 0:01:46]} e5 {[%emt 0:00:53]} 20. Rbc1 {[%emt 0:06:59]} Rfd8 {[%emt 0:05:36]} 21. Rfd1 {[%emt 0:03:00]} Qe6 {[%emt 0:01:20]} 22. Rxd8+ {[%emt 0:03:20]} Rxd8 {[%emt 0:00:04]} 23. h3 {[%emt 0:01:21]} Rc8 {[%emt 0:04:38]} 24. Ba3 {[%emt 0:07:45]} h5 {[%emt 0:08:51]} 25. c5 {[%emt 0:07:48]} bxc5 {[%emt 0:00:16]} 26. Rxc5 {[%emt 0:00:20]} Rb8 {[%emt 0:00:17]} 27. Qc2 {[%emt 0:06:34]} Qa6 {[%emt 0:00:06]} 28. Qc4+ {[%emt 0:01:38]} Qxc4 {[%emt 0:00:06]} 29. Rxc4 {[%emt 0:00:01]} Rb1+ {[%emt 0:00:04]} 30. Kh2 {[%emt 0:03:56]} Ra1 {[%emt 0:03:44]} 31. Rc8+ {[%emt 0:00:31]} Kh7 {[%emt 0:00:02]} 32. Rc7 {[%emt 0:00:22]} Kh6 {[%emt 0:01:46]} 33. Rxa7 {[%emt 0:00:33]} Rxa2 {[%emt 0:00:21]} 34. f3 {[%emt 0:02:00]} h4 {[%emt 0:03:33]} 35. Bc5 {[%emt 0:00:44]} Re2 {[%emt 0:02:03]} 36. Kg1 {[%emt 0:01:34]} Rc2 {[%emt 0:01:21]} 37. Be7 {[%emt 0:00:53]} Rc4 {[%emt 0:00:32]} 38. Bg5+ {[%emt 0:01:10]} Kxg5 {[%emt 0:00:09]} 39. Rxg7 {[%emt 0:00:03]} Rc1+ {[%emt 0:00:52]} 40. Kf2 {[%emt 0:00:05]} Rc2+ {[%emt 0:00:03]} 41. Kf1 {[%emt 0:00:06]} Kf6 {[%emt 0:00:16]} 42. Rg8 {[%emt 0:00:23]} Ra2 {[%emt 0:02:28]} 43. Re8 {[%emt 0:00:29]} Ra6 {[%emt 0:00:25]} 44. Kf2 {[%emt 0:00:35]} Ra2+ {[%emt 0:03:04]} 45. Kf1 {[%emt 0:00:04]} Ra7 {[%emt 0:00:01]} 46. Kf2 {[%emt 0:00:34]} Rg7 {[%emt 0:01:16]} 47. Rh8 {[%emt 0:01:08]} g5 {[%emt 0:00:21]} 48. Re8 {[%emt 0:00:48]} Re7 {[%emt 0:01:24]} 49. Rg8 {[%emt 0:01:03]} e4 {[%emt 0:00:14]} 50. fxe4 {[%emt 0:01:04]} Rxe4 {[%emt 0:00:22]} 51. Rf8+ {[%emt 0:00:28]} Kg6 {[%emt 0:00:31]} 52. Rg8+ {[%emt 0:00:11]} Kf6 {[%emt 0:00:46]} 53. Rf8+ {[%emt 0:00:06]} Ke5 {[%emt 0:00:31]} 54. Re8+ {[%emt 0:00:36]} Kd5 {[%emt 0:00:02]} 55. Rf8 {[%emt 0:00:37]} Ke6 {[%emt 0:01:02]} 56. Rh8 {[%emt 0:01:02]} Ra4 {[%emt 0:00:26]} 57. Rg8 {[%emt 0:00:50]} g4 {[%emt 0:00:49]} 58. hxg4 {[%emt 0:00:18]} fxg4 {[%emt 0:00:02]} 59. Rh8 {[%emt 0:00:32]} Ra2+ {[%emt 0:00:06]} 60. Kf1 {[%emt 0:00:28]} Ra1+ {[%emt 0:00:12]} 61. Ke2 {[%emt 0:00:43]} Rh1 {[%emt 0:00:40]} 62. Re8+ {[%emt 0:00:35]} Kf7 {[%emt 0:01:25]} 63. Ra8 {[%emt 0:00:22]} Rb1 {[%emt 0:00:40]} 64. Ra7+ {[%emt 0:00:16]} Kf6 {[%emt 0:00:26]} 65. Ra6+ {[%emt 0:00:05]} Kf5 {[%emt 0:00:30]} 66. Ra5+ {[%emt 0:00:04]} Kg6 {[%emt 0:00:31]} 67. Ra6+ {[%emt 0:00:04]} Kg5 {[%emt 0:00:33]} 68. Ra5+ {[%emt 0:00:04]} 1/2-1/2

[Event "Moscow-ch Women 2021"]
[Site "Moscow"]
[Date "2021.03.28"]
[Round "4.2"]
[White "Diakonova, Ekaterina"]
[Black "Zherebtsova, Alexandra"]
[Result "1/2-1/2"]
[ECO "C89"]
[WhiteElo "2156"]
[BlackElo "2225"]
[Annotator "NA"]
[PlyCount "80"]
[EventDate "2021.03.25"]
[EventType "swiss"]
[EventCountry "RUS"]
[SourceTitle "playchess.com"]
[Source "ChessBase"]
[SourceQuality "1"]
[TimeControl "5400+30"]

1. e4 {[%emt 0:00:00]} e5 {[%emt 0:02:33]} 2. Nf3 {[%emt 0:00:00]} Nc6 {[%emt 0:00:04]} 3. Bb5 {[%emt 0:00:00]} a6 {[%emt 0:00:05]} 4. Ba4 {[%emt 0:00:00]} Nf6 {[%emt 0:00:15]} 5. O-O {[%emt 0:00:00]} Be7 {[%emt 0:00:48]} 6. Re1 {[%emt 0:00:00]} b5 {[%emt 0:00:29]} 7. Bb3 {[%emt 0:00:00]} O-O {[%emt 0:01:39]} 8. c3 {[%emt 0:00:03]} d5 {[%emt 0:07:14]} 9. exd5 {[%emt 0:00:05]} Nxd5 {[%emt 0:00:03]} 10. Nxe5 {[%emt 0:00:04]} Nxe5 {[%emt 0:00:04]} 11. Rxe5 {[%emt 0:00:04]} c6 {[%emt 0:02:17]} 12. d3 {[%emt 0:00:09]} Bd6 {[%emt 0:01:17]} 13. Re1 {[%emt 0:00:11]} Qh4 {[%emt 0:05:10]} 14. g3 {[%emt 0:00:07]} Qh3 {[%emt 0:02:12]} 15. Qf3 {[%emt 0:00:14]} Bg4 {[%emt 0:02:54]} 16. Qg2 {[%emt 0:06:58]} Qh5 {[%emt 0:06:01]} 17. Bxd5 {[%emt 0:37:08]} cxd5 {[%emt 0:02:45]} 18. f4 {[%emt 0:00:25]} Rae8 {[%emt 0:14:54]} 19. Be3 {[%emt 0:00:12]} d4 {[%emt 0:05:56]} 20. cxd4 {[%emt 0:00:38]} Bf3 {[%emt 0:04:39]} 21. Qf2 {[%emt 0:02:08]} f5 {[%emt 0:06:26]} 22. a4 {[%emt 0:23:30]} Ba8 {[%emt 0:11:35]} 23. axb5 {[%emt 0:10:48]} axb5 {[%emt 0:00:27]} 24. Ra7 {[%emt 0:05:40]} Rf7 {[%emt 0:09:55]} 25. d5 {[%emt 0:00:27]} Rxa7 {[%emt 0:08:24]} 26. Bxa7 {[%emt 0:00:02]} Bxd5 {[%emt 0:00:41]} 27. Nc3 {[%emt 0:01:39]} Bc6 {[%emt 0:00:33]} 28. Rxe8+ {[%emt 0:01:35]} Qxe8 {[%emt 0:00:02]} 29. Qe3 {[%emt 0:00:50]} Qd7 {[%emt 0:01:44]} 30. Bc5 {[%emt 0:05:05]} Bb8 {[%emt 0:00:11]} 31. Qe7 {[%emt 0:01:52]} Qxe7 {[%emt 0:00:07]} 32. Bxe7 {[%emt 0:00:01]} Ba7+ {[%emt 0:00:44]} 33. Kf1 {[%emt 0:00:04]} Bd4 {[%emt 0:00:07]} 34. Bd6 {[%emt 0:03:35]} Bxc3 {[%emt 0:00:28]} 35. bxc3 {[%emt 0:00:02]} Kf7 {[%emt 0:00:07]} 36. Kf2 {[%emt 0:00:38]} Ke6 {[%emt 0:00:06]} 37. Be5 {[%emt 0:00:01]} g6 {[%emt 0:00:07]} 38. Ke3 {[%emt 0:00:51]} Kd5 {[%emt 0:00:08]} 39. Bg7 {[%emt 0:01:44]} h5 {[%emt 0:01:27]} 40. Bf8 {[%emt 0:00:14]} Bb7 {[%emt 0:05:22]} 1/2-1/2

[Event "Moscow-ch Women 2021"]
[Site "Moscow"]
[Date "2021.03.28"]
[Round "4.3"]
[White "Ilyina, Lada"]
[Black "Paramzina, Anastasya"]
[Result "0-1"]
[ECO "B51"]
[WhiteElo "1959"]
[BlackElo "2252"]
[Annotator "NA"]
[PlyCount "126"]
[EventDate "2021.03.25"]
[EventType "swiss"]
[EventCountry "RUS"]
[SourceTitle "playchess.com"]
[Source "ChessBase"]
[SourceQuality "1"]
[TimeControl "5400+30"]

1. e4 {[%emt 0:00:00]} c5 {[%emt 0:13:27]} 2. Nf3 {[%emt 0:00:00]} d6 {[%emt 0:00:03]} 3. Bb5+ {[%emt 0:00:00]} Nd7 {[%emt 0:00:27]} 4. d4 {[%emt 0:02:52]} cxd4 {[%emt 0:00:16]} 5. Qxd4 {[%emt 0:00:03]} a6 {[%emt 0:00:06]} 6. Bxd7+ {[%emt 0:00:30]} Bxd7 {[%emt 0:00:05]} 7. Nc3 {[%emt 0:00:08]} e5 {[%emt 0:01:08]} 8. Qd3 {[%emt 0:00:23]} Rc8 {[%emt 0:00:24]} 9. Bg5 {[%emt 0:04:10]} Be7 {[%emt 0:02:07]} 10. Bxe7 {[%emt 0:07:34]} Qxe7 {[%emt 0:00:06]} 11. Rd1 {[%emt 0:04:36]} Rc6 {[%emt 0:00:35]} 12. Nd2 {[%emt 0:13:30]} Be6 {[%emt 0:03:40]} 13. Nd5 {[%emt 0:09:20]} Bxd5 {[%emt 0:00:26]} 14. exd5 {[%emt 0:00:08]} Rc7 {[%emt 0:03:06]} 15. O-O {[%emt 0:03:09]} Nf6 {[%emt 0:00:08]} 16. Rfe1 {[%emt 0:01:34]} O-O {[%emt 0:20:21]} 17. f4 {[%emt 0:02:53]} Nd7 {[%emt 0:00:03]} 18. f5 {[%emt 0:14:34]} Rfc8 {[%emt 0:01:01]} 19. c3 {[%emt 0:01:22]} Nf6 {[%emt 0:01:22]} 20. c4 {[%emt 0:09:49]} b5 {[%emt 0:01:55]} 21. b3 {[%emt 0:00:04]} bxc4 {[%emt 0:01:19]} 22. bxc4 {[%emt 0:00:02]} Rb7 {[%emt 0:00:47]} 23. Rb1 {[%emt 0:01:21]} h6 {[%emt 0:12:56]} 24. Ne4 {[%emt 0:05:31]} Nxe4 {[%emt 0:01:38]} 25. Qxe4 {[%emt 0:00:26]} Rcb8 {[%emt 0:01:58]} 26. Rxb7 {[%emt 0:01:46]} Qxb7 {[%emt 0:00:11]} 27. f6 {[%emt 0:03:10]} Qa7+ {[%emt 0:06:55]} 28. Kf1 {[%emt 0:04:19]} gxf6 {[%emt 0:05:14]} 29. Re2 {[%emt 0:10:20]} Qc5 {[%emt 0:08:21]} 30. g3 {[%emt 0:00:29]} Rb4 {[%emt 0:01:47]} 31. Rc2 {[%emt 0:00:08]} f5 {[%emt 0:05:08]} 32. Qxf5 {[%emt 0:00:34]} Rxc4 {[%emt 0:00:10]} 33. Rf2 {[%emt 0:00:56]} Qxd5 {[%emt 0:00:15]} 34. Qf3 {[%emt 0:00:40]} Qxf3 {[%emt 0:03:43]} 35. Rxf3 {[%emt 0:00:01]} Rc1+ {[%emt 0:01:07]} 36. Kg2 {[%emt 0:00:22]} d5 {[%emt 0:00:25]} 37. Rf5 {[%emt 0:00:38]} Re1 {[%emt 0:00:12]} 38. Kf2 {[%emt 0:00:18]} Re4 {[%emt 0:00:04]} 39. Rf6 {[%emt 0:00:19]} Ra4 {[%emt 0:00:26]} 40. Rxh6 {[%emt 0:00:13]} Rxa2+ {[%emt 0:00:29]} 41. Kf3 {[%emt 0:00:20]} Ra3+ {[%emt 0:01:41]} 42. Kg4 {[%emt 0:00:06]} e4 {[%emt 0:01:02]} 43. Rd6 {[%emt 0:00:56]} Rd3 {[%emt 0:00:10]} 44. Rxa6 {[%emt 0:01:01]} d4 {[%emt 0:00:22]} 45. Ra2 {[%emt 0:00:40]} Rd1 {[%emt 0:02:37]} 46. Re2 {[%emt 0:00:55]} e3 {[%emt 0:00:32]} 47. Kf3 {[%emt 0:00:29]} Kg7 {[%emt 0:01:30]} 48. Ke4 {[%emt 0:00:46]} f5+ {[%emt 0:00:22]} 49. Kxf5 {[%emt 0:00:14]} Rd2 {[%emt 0:00:19]} 50. Re1 {[%emt 0:00:18]} Rxh2 {[%emt 0:00:25]} 51. Ke4 {[%emt 0:00:12]} Rd2 {[%emt 0:00:12]} 52. Kf3 {[%emt 0:00:47]} Kf6 {[%emt 0:00:21]} 53. Ra1 {[%emt 0:00:54]} e2 {[%emt 0:00:43]} 54. Ra6+ {[%emt 0:00:33]} Ke5 {[%emt 0:00:07]} 55. Ra5+ {[%emt 0:00:07]} Ke6 {[%emt 0:00:11]} 56. Ra6+ {[%emt 0:00:47]} Kd5 {[%emt 0:00:03]} 57. Ra5+ {[%emt 0:00:39]} Kc4 {[%emt 0:00:05]} 58. Ra1 {[%emt 0:00:30]} d3 {[%emt 0:00:16]} 59. Re1 {[%emt 0:00:18]} Kd4 {[%emt 0:00:39]} 60. g4 {[%emt 0:00:30]} Rd1 {[%emt 0:00:04]} 61. Rxe2 {[%emt 0:00:15]} dxe2 {[%emt 0:00:11]} 62. Kxe2 {[%emt 0:00:04]} Rg1 {[%emt 0:00:04]} 63. Kf3 {[%emt 0:00:05]} Ke5 {[%emt 0:00:01]} 0-1

[Event "Moscow-ch Women 2021"]
[Site "Moscow"]
[Date "2021.03.28"]
[Round "4.4"]
[White "Gorovenko, Darya"]
[Black "Ivanova, Anastasia S."]
[Result "1-0"]
[ECO "A58"]
[WhiteElo "2106"]
[BlackElo "1830"]
[Annotator "NA"]
[PlyCount "77"]
[EventDate "2021.03.25"]
[EventType "swiss"]
[EventCountry "RUS"]
[SourceTitle "playchess.com"]
[Source "ChessBase"]
[SourceQuality "1"]
[TimeControl "5400+30"]

1. d4 {[%emt 0:00:37]} Nf6 {[%emt 0:00:00]} 2. c4 {[%emt 0:00:07]} c5 {[%emt 0:00:08]} 3. d5 {[%emt 0:00:18]} b5 {[%emt 0:00:05]} 4. cxb5 {[%emt 0:00:21]} a6 {[%emt 0:00:05]} 5. bxa6 {[%emt 0:00:23]} g6 {[%emt 0:00:09]} 6. Nc3 {[%emt 0:00:33]} Bg7 {[%emt 0:00:05]} 7. e4 {[%emt 0:00:16]} O-O {[%emt 0:00:09]} 8. a4 {[%emt 0:00:49]} Qa5 {[%emt 0:02:02]} 9. Bd2 {[%emt 0:00:37]} Bxa6 {[%emt 0:01:07]} 10. Bxa6 {[%emt 0:01:06]} Nxa6 {[%emt 0:02:33]} 11. Nf3 {[%emt 0:00:40]} Qb4 {[%emt 0:10:06]} 12. Qe2 {[%emt 0:10:18]} d6 {[%emt 0:15:57]} 13. O-O {[%emt 0:00:47]} Qb7 {[%emt 0:02:43]} 14. Nb5 {[%emt 0:04:18]} Nc7 {[%emt 0:02:09]} 15. Nxc7 {[%emt 0:00:20]} Qxc7 {[%emt 0:00:03]} 16. Bc3 {[%emt 0:05:41]} Nd7 {[%emt 0:04:04]} 17. Bxg7 {[%emt 0:04:49]} Kxg7 {[%emt 0:00:06]} 18. Nd2 {[%emt 0:00:06]} Rfb8 {[%emt 0:05:25]} 19. b3 {[%emt 0:00:20]} Rb4 {[%emt 0:01:55]} 20. Rac1 {[%emt 0:00:33]} Nb6 {[%emt 0:01:54]} 21. Qe3 {[%emt 0:05:13]} f6 {[%emt 0:03:51]} 22. h4 {[%emt 0:05:25]} c4 {[%emt 0:05:46]} 23. Nf3 {[%emt 0:18:24]} Nd7 {[%emt 0:09:13]} 24. Nd4 {[%emt 0:08:10]} Nf8 {[%emt 0:01:29]} 25. Qe2 {[%emt 0:04:38]} Qc5 {[%emt 0:07:38]} 26. Nc6 {[%emt 0:00:17]} Rxb3 {[%emt 0:02:17]} 27. Rxc4 {[%emt 0:00:07]} Qa3 {[%emt 0:01:06]} 28. Nxe7 {[%emt 0:03:06]} Rb7 {[%emt 0:02:34]} 29. Nc8 {[%emt 0:03:01]} Nd7 {[%emt 0:01:31]} 30. Qc2 {[%emt 0:01:41]} Rb2 {[%emt 0:04:35]} 31. Qc1 {[%emt 0:01:21]} Rab8 {[%emt 0:02:33]} 32. Rc7 {[%emt 0:01:58]} Qxa4 {[%emt 0:00:11]} 33. Qc6 {[%emt 0:00:16]} Qxc6 {[%emt 0:01:26]} 34. dxc6 {[%emt 0:00:05]} Rxc8 {[%emt 0:00:35]} 35. Rxc8 {[%emt 0:00:17]} Ne5 {[%emt 0:00:09]} 36. Rc1 {[%emt 0:01:16]} Nd3 {[%emt 0:00:45]} 37. Rc7+ {[%emt 0:01:22]} Kh6 {[%emt 0:00:21]} 38. Rb7 {[%emt 0:00:05]} Nxc1 {[%emt 0:00:58]} 39. Rxb2 {[%emt 0:00:06]} 1-0